bitfinex-derivatives/quotes_ETHF0:USTF0_20240928
["timestamp","ask_amount","ask_price","bid_price","bid_amount"]
[1727495897459,5.20553886,2692.0,2691.9,0.859]
[1727495897656,2.77199407,2692.0,2691.9,0.859]
[1727495897856,5.20639107,2692.0,2691.9,0.859]
[1727495898249,5.57776107,2692.0,2691.9,0.859]
[1727495898449,5.20639107,2692.0,2691.9,0.859]
[1727495898656,4.21739107,2692.0,2691.9,0.859]
[1727495898863,1.78299407,2692.0,2691.9,0.859]
[1727495899057,3.49436407,2692.1,2691.9,0.859]
[1727495899257,4.21765602,2692.0,2691.9,0.859]
[1727495899969,4.58902602,2692.0,2691.9,0.859]
[1727495900972,2.15436407,2692.0,2691.9,0.859]
[1727495901265,2.15518707,2692.0,2691.9,0.859]
[1727495901764,2.50520079,2692.0,2691.9,0.859]
[1727495905562,2.13383079,2692.0,2691.9,0.859]
[1727495905761,2.13383079,2692.0,2691.9,2.205407]
[1727495905762,0.18581121,2692.0,2691.9,2.205407]
[1727495905969,1.94801958,2692.1,2692.0,0.37137]
[1727495906163,1.64693101,2692.1,2692.0,2.388187]
[1727495906468,1.46114075,2692.1,2692.0,3.44450349]
[1727495907066,1.64693512,2692.1,2692.0,2.388187]
[1727495907264,1.64693512,2692.1,2692.0,2.016817]
[1727495907959,1.46114075,2692.1,2692.0,2.016817]
[1727495908154,0.37139,2691.9,2691.8,1.832017]
[1727495908364,6.86720958,2691.9,2691.8,0.857]
[1727495908567,7.05299788,2691.9,2691.7,2.0702]
[1727495908763,7.05299788,2691.9,2691.8,0.857]
[1727495908764,6.86720958,2691.9,2691.8,0.857]
[1727495909064,0.3714,2691.8,2691.7,0.857]
[1727495909269,2.50548997,2691.8,2691.7,0.857]
[1727495909468,0.55722034,2691.8,2691.5,2.030217]
[1727495909667,3.28831499,2691.7,2691.6,0.25276376]
[1727495911067,1.34,2691.7,2691.6,0.25276376]
[1727495912967,1.34,2691.7,2691.6,0.858]
[1727495913164,2.3607,2691.7,2691.6,0.858]
[1727495915674,4.30901499,2691.7,2691.6,0.858]
[1727495915872,2.3607,2691.7,2691.6,0.858]
[1727495916073,4.30901499,2691.7,2691.6,0.858]
[1727495916374,5.32461499,2691.7,2691.6,0.858]
[1727495916876,7.39701049,2691.7,2691.6,0.858]
[1727495917268,6.05701049,2691.7,2691.6,0.858]
[1727495917462,4.02071049,2691.7,2691.6,0.858]
[1727495917662,4.02064151,2691.7,2691.6,0.858]
[1727495917867,1.58561704,2691.7,2691.6,0.858]
[1727495918577,4.02064151,2691.7,2691.6,0.858]
[1727495919479,1.58564622,2691.7,2691.6,2.24133]
[1727495919877,1.58565556,2691.7,2691.6,2.24133]
[1727495920471,1.58564329,2691.7,2691.6,2.24133]
[1727495921876,6.60502447,2691.8,2691.6,2.24133]
[1727495923368,6.60502447,2691.8,2691.6,1.8699]
[1727495923768,6.11788761,2691.8,2691.6,1.8699]
[1727495925470,6.11788761,2691.8,2691.5,2.401647]
[1727495925471,0.37144,2691.5,2691.4,0.975017]
[1727495925673,0.37147,2691.4,2691.1,0.975017]
[1727495925877,0.37147,2691.4,2690.8,2.69754251]
[1727495925878,6.49607656,2691.2,2690.8,2.69754251]
[1727495926080,1.34,2690.9,2690.7,1.832017]
[1727495926391,1.93441821,2690.8,2690.7,0.857]
[1727495926674,1.93441821,2690.8,2690.7,1.22855]
[1727495928171,0.9607,2690.8,2690.7,1.22855]
[1727495937690,0.9607,2690.8,2690.7,0.857]
[1727495939386,0.9607,2690.8,2690.7,1.22855]
[1727495941992,2.3007,2690.8,2690.7,1.22855]
[1727495947095,2.3007,2690.8,2690.7,0.857]
[1727495948594,2.3007,2690.8,2690.7,0.8912]
[1727495949002,2.3007,2690.8,2690.7,1.26275]
[1727495951106,2.3007,2690.8,2690.7,0.8912]
[1727495953505,2.3007,2690.8,2690.7,1.26275]
[1727495960007,0.97371821,2691.1,2690.7,11.948]
[1727495960214,2.32381821,2691.6,2691.3,0.37146]
[1727495960511,1.34,2691.5,2691.4,0.856]
[1727495960699,4.5478,2691.5,2691.4,0.856]
[1727495961101,5.52151821,2691.5,2691.4,0.856]
[1727495961299,4.91924,2691.5,2691.4,0.856]
[1727495961501,4.5478,2691.5,2691.4,0.856]
[1727495963211,5.51979782,2691.5,2691.4,1.9222]
[1727495963916,4.5478,2691.5,2691.4,1.9222]
[1727495965524,0.97210914,2691.5,2691.4,1.9222]
[1727495965712,0.97210914,2691.5,2691.4,2.29366]
[1727495966223,3.31520914,2691.6,2691.5,0.37144]
[1727495966619,2.3431,2691.6,2691.5,0.37144]
[1727495966826,3.31524726,2691.6,2691.5,0.37144]
[1727495967926,3.31524726,2691.6,2691.4,2.29365]
[1727495968319,3.31524726,2691.6,2691.4,1.9222]
[1727495969021,3.31524726,2691.6,2691.4,2.29365]
[1727495969222,2.3431,2691.6,2691.4,2.29365]
[1727495970324,3.31524726,2691.6,2691.4,2.29365]
[1727495970623,2.3431,2691.6,2691.4,2.29365]
[1727495973428,2.98804726,2691.7,2691.6,0.37143]
[1727495973618,5.39394726,2691.7,2691.6,0.37143]
[1727495974228,4.4218,2691.7,2691.6,0.37143]
[1727495974829,5.39394726,2691.7,2691.6,0.856]
[1727495975823,4.4218,2691.7,2691.6,0.856]
[1727495978920,3.0818,2691.7,2691.6,1.22743]
[1727495979235,2.0855,2691.7,2691.6,1.22743]
[1727495984039,1.0432,2691.9,2691.8,0.3714]
[1727495984335,3.04112819,2691.9,2691.8,0.3714]
[1727495985128,4.38112819,2691.9,2691.8,0.3714]
[1727495991343,3.4099,2691.9,2691.8,0.3714]
[1727495999242,4.38112819,2691.9,2691.8,0.3714]
[1727495999543,4.86831276,2691.9,2691.8,0.3714]
[1727496001446,4.86831276,2691.9,2691.7,3.0539]
[1727496001647,4.86831276,2691.9,2691.8,0.3714]
[1727496002169,3.4099,2691.9,2691.8,0.3714]
[1727496003154,5.35838918,2691.9,2691.8,0.3714]
[1727496004644,5.35838918,2691.9,2691.6,1.34]
[1727496004844,1.94848918,2691.8,2691.7,0.24999174]
[1727496005049,1.94848918,2691.8,2691.7,0.62140174]
[1727496005250,1.94848918,2691.8,2691.7,0.24999174]
[1727496005453,1.94848918,2691.8,2691.7,0.62140174]
[1727496005749,1.94848918,2691.8,2691.7,0.855]
[1727496006347,5.35838918,2691.9,2691.7,0.855]
[1727496006551,5.72977918,2691.9,2691.7,0.855]
[1727496006746,3.78129,2691.9,2691.7,1.830017]
[1727496007153,5.72977918,2691.9,2691.7,0.855]
[1727496007742,5.72977918,2691.9,2691.7,1.830017]
[1727496007944,5.35838918,2691.9,2691.7,1.830017]
[1727496008154,5.72977918,2691.9,2691.7,1.830017]
[1727496010249,5.35838918,2691.9,2691.7,1.830017]
[1727496010552,1.94848918,2691.9,2691.8,1.7114]
[1727496010746,1.94848918,2691.9,2691.8,10.39829024]
[1727496010948,1.94848918,2691.9,2691.8,16.39829024]
[1727496011255,1.94848918,2691.9,2691.8,10.39829024]
[1727496013058,5.64282447,2692.1,2692.0,0.37137]
[1727496013457,3.2078,2692.1,2692.0,0.37137]
[1727496013857,3.2078,2692.1,2691.9,1.37578]
[1727496014357,3.2078,2692.1,2692.0,4.27950852]
[1727496014655,5.15646558,2692.1,2692.0,4.88247131]
[1727496014861,5.15646558,2692.1,2692.0,3.90813852]
[1727496015049,5.15646558,2692.1,2692.0,5.25384131]
[1727496015255,3.2078,2692.1,2692.0,4.27950852]
[1727496015851,5.15646558,2692.1,2692.0,4.27950852]
[1727496016059,5.15646558,2692.1,2692.0,3.90813852]
[1727496016260,3.2078,2692.1,2692.0,3.90813852]
[1727496016954,5.15646558,2692.1,2692.0,3.90813852]
[1727496017256,3.2078,2692.1,2691.9,2.35011279]
[1727496017458,5.15646558,2692.1,2692.0,0.855]
[1727496017653,3.2078,2692.1,2692.0,0.855]
[1727496020962,3.2078,2692.1,2691.9,1.34571279]
[1727496021165,3.2078,2692.1,2692.0,0.8892]
[1727496025165,3.2078,2692.1,2692.0,1.26057]
[1727496029654,5.15646558,2692.1,2692.0,1.26057]
[1727496029859,5.15646558,2692.1,2692.0,0.8892]
[1727496030471,5.15646558,2692.1,2692.0,1.26057]
[1727496031175,5.15646558,2692.1,2692.0,0.8892]
[1727496031368,5.15646558,2692.1,2692.0,1.26057]
[1727496031962,5.15646558,2692.1,2692.0,2.30467]
[1727496032465,5.15646558,2692.1,2692.0,0.8892]
[1727496032666,3.2078,2692.1,2692.0,0.8892]
[1727496033472,3.2078,2692.1,2692.0,0.855]
[1727496034366,5.15534249,2692.1,2692.0,0.855]
[1727496036768,5.15534249,2692.1,2692.0,1.22637]
[1727496036974,5.15534249,2692.1,2692.0,2.22537]
[1727496037672,3.2078,2692.1,2692.0,2.22537]
[1727496037866,3.2078,2692.1,2692.0,3.19970279]
[1727496039073,1.0123,2692.2,2692.0,3.19970279]
[1727496039768,1.0123,2692.2,2692.0,2.82833279]
[1727496040469,2.95984249,2692.2,2692.1,0.854]
[1727496040769,2.95693456,2692.2,2692.1,0.854]
[1727496042276,5.39276654,2692.2,2692.1,0.854]
[1727496042664,3.81948198,2692.2,2692.1,0.854]
[1727496042869,5.39289059,2692.2,2692.1,0.854]
[1727496043070,1.38365,2692.2,2692.1,0.854]
[1727496043271,5.39289088,2692.2,2692.1,0.854]
[1727496043473,2.9570589,2692.2,2692.1,0.854]
[1727496043681,6.73289088,2692.2,2692.1,0.854]
[1727496044472,6.73289088,2692.2,2691.8,1.34573279]
[1727496044473,10.44729088,2692.2,2691.9,0.37139]
[1727496044681,1.94813568,2692.1,2692.0,0.854]
[1727496045180,1.94813568,2692.1,2692.0,1.22537]
[1727496045378,2.96043568,2692.2,2692.0,1.22537]
[1727496045682,2.96043568,2692.2,2692.0,3.16980279]
[1727496045878,2.96043568,2692.2,2692.1,0.37136]
[1727496046380,2.96043568,2692.2,2692.0,4.50979279]
[1727496047973,2.96043568,2692.2,2692.0,4.13843279]
[1727496048572,2.96043568,2692.2,2692.0,3.1641]
[1727496049270,2.96043568,2692.2,2692.0,4.13843279]
[1727496052280,2.96043568,2692.2,2692.0,4.50980279]
[1727496052482,1.94813568,2692.1,2692.0,4.50980279]
[1727496052682,2.43583198,2692.1,2692.0,3.1641]
[1727496052975,4.01002537,2692.1,2692.0,3.1641]
[1727496053281,4.01002537,2692.1,2692.0,3.53547]
[1727496053674,4.01077587,2692.1,2692.0,3.53547]
[1727496054080,4.01077587,2692.1,2692.0,3.1641]
[1727496054280,1.57419339,2692.1,2692.0,3.1641]
[1727496055285,2.43699357,2692.1,2692.0,3.1641]
[1727496055482,1.57419339,2692.1,2692.0,3.1641]
[1727496055675,4.01123303,2692.1,2692.0,3.1641]
[1727496055983,1.57419339,2692.1,2692.0,3.1641]
[1727496056378,1.57419339,2692.1,2692.0,3.53547]
[1727496056572,1.57419339,2692.1,2692.0,3.1641]
[1727496056773,4.0112277,2692.1,2692.0,3.53547]
[1727496056977,4.01123724,2692.1,2692.0,3.53547]
[1727496057177,4.01123724,2692.1,2692.0,3.99460462]
[1727496057376,3.48314385,2692.2,2692.0,5.98253741]
[1727496057579,4.01161492,2692.1,2692.0,4.58327]
[1727496058174,4.01161492,2692.1,2692.0,1.8583]
[1727496058380,1.57457107,2692.1,2692.0,0.8882]
[1727496059787,3.48313549,2692.2,2692.0,1.86253279]
[1727496059984,1.94958469,2692.1,2692.0,1.86253279]
[1727496063190,3.48313549,2692.2,2692.0,1.86253279]
[1727496063590,1.94963687,2692.1,2692.0,1.86253279]
[1727496063993,1.94963687,2692.1,2692.0,2.9319646]
[1727496064487,1.94963687,2692.1,2692.0,3.30334269]
[1727496064689,1.94963687,2692.1,2692.0,2.3290099]
[1727496065685,1.94963687,2692.1,2692.0,1.9576399]
[1727496066482,1.0461,2692.2,2692.0,1.86300963]
[1727496066483,3.48313549,2692.2,2692.0,1.86300963]
[1727496067587,3.48313549,2692.2,2692.0,2.23437963]
[1727496067782,1.57473442,2692.1,2692.0,1.25957]
[1727496068495,2.43704704,2692.1,2692.0,1.25957]
[1727496068694,1.57473442,2692.1,2692.0,1.25957]
[1727496068993,2.43704302,2692.1,2692.0,1.25957]
[1727496069192,4.01177744,2692.1,2692.0,1.25957]
[1727496069797,4.01177744,2692.1,2692.0,1.22537]
[1727496070292,4.01165128,2692.1,2692.0,1.22537]
[1727496071191,4.01165128,2692.1,2692.0,2.21207]
[1727496074196,1.57460826,2692.1,2692.0,2.21207]
[1727496074397,3.48314302,2692.2,2692.1,0.37136]
[1727496074690,5.43250053,2692.2,2692.1,4.24215775]
[1727496074897,2.99545751,2692.2,2692.1,5.26015775]
[1727496075099,2.99545751,2692.2,2692.1,4.88879775]
[1727496075298,2.99545751,2692.2,2692.1,4.40197125]
[1727496075594,2.99545751,2692.2,2692.1,3.42729916]
[1727496077691,2.99545751,2692.2,2692.1,5.26015834]
[1727496078084,2.99545751,2692.2,2692.1,3.79865916]
[1727496078303,2.99545751,2692.2,2692.1,3.42729916]
[1727496079100,2.99545751,2692.2,2692.1,4.40190759]
[1727496079394,2.99545751,2692.2,2692.1,3.42729916]
[1727496080094,2.99545751,2692.2,2692.1,2.358]
[1727496080397,2.99545751,2692.2,2692.1,3.42995461]
[1727496081102,2.3861,2692.2,2692.1,1.849585]
[1727496081299,6.76345818,2692.2,2692.1,0.875]
[1727496081993,6.39210818,2692.2,2692.1,0.875]
[1727496082789,3.95506516,2692.2,2692.1,0.875]
[1727496089899,6.39164042,2692.2,2692.1,0.875]
[1727496093406,6.39164042,2692.2,2692.1,0.9092]
[1727496097217,6.39164042,2692.2,2692.1,0.0342]
[1727496097408,8.0407813,2692.2,2692.1,0.0342]
[1727496099711,8.04059547,2692.2,2692.1,0.0342]
[1727496104518,6.47185,2692.2,2692.1,0.0342]
[1727496104721,8.04026082,2692.2,2692.1,0.0342]
[1727496105114,4.32586082,2692.2,2692.1,0.0342]
[1727496105323,7.24885919,2692.2,2692.1,0.0342]
[1727496105821,0.37136,2692.1,2691.9,0.37139]
[1727496106022,1.56841082,2692.0,2691.9,0.37139]
[1727496106524,1.56841082,2692.0,2691.9,1.41109]
[1727496107030,1.56841082,2692.0,2691.9,1.0397]
[1727496109425,1.56830185,2692.0,2691.9,1.0397]
[1727496111124,4.00385267,2692.0,2691.9,1.0397]
[1727496111620,1.56830185,2692.0,2691.9,1.0397]
[1727496112028,1.94844114,2692.0,2691.9,1.0397]
[1727496113221,2.31981114,2692.0,2691.9,1.0397]
[1727496113716,1.94844114,2692.0,2691.9,1.0397]
[1727496117924,0.3714,2691.8,2691.7,0.974585]
[1727496118124,0.3714,2691.8,2691.3,5.90363198]
[1727496118125,0.37144,2691.5,2691.3,1.234585]
[1727496118314,4.82669242,2691.4,2691.2,1.857585]
[1727496118627,1.71148,2691.3,2691.1,1.951985]
[1727496118828,1.71148,2691.3,2691.1,1.8604]
[1727496118829,3.65978989,2691.3,2691.1,1.8604]
[1727496119018,3.65978989,2691.3,2691.0,0.974585]
[1727496119019,0.37148,2691.2,2691.0,0.974585]
[1727496119230,0.97375476,2691.1,2691.0,0.883]
[1727496119419,4.66927774,2691.2,2691.0,0.883]
[1727496119629,0.97376135,2691.1,2691.0,0.883]
[1727496119827,5.04076774,2691.2,2691.0,0.883]
[1727496120027,1.46147774,2691.1,2691.0,0.883]
[1727496121526,1.46147774,2691.1,2690.9,2.26022]
[1727496121727,0.97338437,2691.0,2690.9,2.26022]
[1727496121931,0.97338437,2691.0,2690.9,1.8887]
[1727496122127,0.97338437,2691.1,2690.9,1.8887]
[1727496123924,0.97338437,2691.1,2690.9,2.26022]
[1727496124430,0.97338437,2691.1,2690.9,1.8887]
[1727496125225,0.97338437,2691.1,2690.9,2.26022]
[1727496126130,3.2078,2691.2,2690.9,1.8887]
[1727496126131,4.55267437,2691.2,2690.9,1.8887]
[1727496126327,4.55267437,2691.2,2690.8,2.9217]
[1727496126328,2.31338437,2691.0,2690.8,2.9217]
[1727496126734,1.004,2690.9,2690.8,2.9217]
[1727496127926,1.004,2690.9,2690.8,2.0387]
[1727496128127,1.004,2690.9,2690.8,0.9774]
[1727496132934,1.37552,2690.9,2690.8,0.9774]
[1727496133126,1.004,2690.9,2690.8,0.9774]
[1727496133635,1.004,2690.9,2690.7,0.929]
[1727496134332,1.34,2690.8,2690.7,0.929]
[1727496134930,1.34,2690.8,2690.7,1.30055]
[1727496135138,1.34,2690.8,2690.7,0.929]
[1727496139834,1.004,2690.9,2690.7,1.30055]
[1727496140330,1.004,2690.9,2690.7,0.929]
[1727496142334,1.004,2690.9,2690.7,1.30055]
[1727496143437,1.004,2690.9,2690.7,0.929]
[1727496143626,3.2078,2691.0,2690.9,0.37152]
[1727496144034,3.2078,2691.0,2690.9,2.36632]
[1727496144832,1.34,2691.0,2690.9,1.0168]
[1727496145932,2.4009,2691.0,2690.9,1.0168]
[1727496149139,2.77241,2691.0,2690.9,1.0168]
[1727496149742,0.97338437,2691.3,2690.9,1.0168]
[1727496150037,6.56338737,2691.7,2690.9,1.0168]
[1727496150038,0.347,2691.5,2691.4,0.37146]
[1727496150249,1.34,2691.7,2691.4,0.929]
[1727496150535,1.34,2691.7,2691.5,2.33833]
[1727496150842,1.71141,2691.7,2691.5,1.9669]
[1727496151143,1.71142,2691.7,2691.5,0.987]
[1727496151341,1.71142,2691.7,2691.4,1.30045]
[1727496151342,3.2078,2691.6,2691.4,1.30045]
[1727496151531,3.3038,2691.5,2691.4,1.30045]
[1727496151734,4.3785,2691.5,2691.4,1.30045]
[1727496152039,4.3785,2691.5,2691.4,0.929]
[1727496153441,4.3785,2691.5,2691.4,1.30046]
[1727496154539,3.2078,2691.6,2691.5,0.37144]
[1727496154740,0.9731,2691.7,2691.4,1.30045]
[1727496155148,0.9731,2691.7,2691.5,0.37144]
[1727496155738,6.6347,2691.9,2691.6,1.41102]
[1727496155939,7.6078,2691.9,2691.6,1.41102]
[1727496157143,8.58118437,2691.9,2691.6,1.41102]
[1727496157446,7.6078,2691.9,2691.6,1.41102]
[1727496157941,7.97919,2691.9,2691.6,1.41102]
[1727496158140,8.58118437,2691.9,2691.6,1.41102]
[1727496159130,5.37338437,2691.9,2691.6,1.41102]
[1727496159738,4.03338437,2691.9,2691.6,1.41102]
[1727496159939,1.34,2691.8,2691.6,1.41102]
[1727496163848,1.34,2691.8,2691.7,0.37141]
[1727496164240,1.34,2691.8,2691.6,1.41102]
[1727496164848,1.34,2691.8,2691.7,0.37141]
[1727496165549,1.34,2691.8,2691.6,1.41102]
[1727496166650,1.34,2691.8,2691.7,0.37141]
[1727496168145,1.34,2691.8,2691.6,1.41103]
[1727496168351,1.34,2691.8,2691.6,1.0396]
[1727496169451,1.34,2691.8,2691.7,0.37141]
[1727496170152,1.34,2691.8,2691.6,1.41102]
[1727496170449,1.7114,2691.8,2691.5,0.37144]
[1727496170649,1.34,2691.8,2691.6,0.957]
[1727496170849,1.7114,2691.8,2691.6,0.957]
[1727496171352,1.34,2691.8,2691.6,0.957]
[1727496171650,1.34,2691.8,2691.6,1.32843]
[1727496172044,1.34,2691.8,2691.6,0.957]
[1727496172248,2.31338437,2691.8,2691.6,0.957]
[1727496176146,2.31338437,2691.8,2691.6,1.32843]
[1727496176453,2.31338437,2691.8,2691.6,0.957]
[1727496177560,2.31338437,2691.8,2691.6,1.32843]
[1727496178359,2.31338437,2691.8,2691.6,0.957]
[1727496179263,2.31338437,2691.8,2691.6,1.32843]
[1727496179560,2.31338437,2691.8,2691.6,0.957]
[1727496179859,2.68478437,2691.8,2691.6,0.957]
[1727496180264,1.7114,2691.8,2691.6,0.957]
[1727496181161,0.37141,2691.7,2691.6,0.957]
[1727496181364,3.2078,2691.7,2691.6,0.957]
[1727496181662,3.57922,2691.7,2691.5,0.957]
[1727496181857,0.9951,2691.6,2691.5,0.957]
[1727496182058,0.9951,2691.6,2691.4,0.957]
[1727496182262,2.0132,2691.5,2691.4,0.957]
[1727496183356,2.0132,2691.5,2691.4,1.32846]
[1727496183667,2.0132,2691.5,2691.4,0.957]
[1727496189360,2.98658437,2691.5,2691.4,0.957]
[1727496189875,2.0132,2691.5,2691.4,0.957]
[1727496190070,2.98658437,2691.5,2691.3,1.32847]
[1727496191771,2.98658437,2691.5,2691.3,0.957]
[1727496192372,2.98658437,2691.5,2691.3,1.32847]
[1727496193269,0.97338437,2691.4,2691.3,1.32847]
[1727496193873,2.98658437,2691.5,2691.3,2.303055]
[1727496194069,0.97338437,2691.4,2691.3,2.303055]
[1727496194763,0.97338437,2691.4,2691.3,1.931585]
[1727496195275,3.96150989,2691.5,2691.2,3.00659283]
[1727496195464,1.94830989,2691.4,2691.3,0.3748608]
[1727496197176,1.94830989,2691.4,2691.3,0.918]
[1727496197479,6.16003737,2691.5,2691.3,0.918]
[1727496197777,1.92733855,2691.4,2691.3,0.918]
[1727496197969,3.99126592,2691.4,2691.3,0.918]
[1727496198276,3.57926,2691.4,2691.3,0.918]
[1727496198474,3.2078,2691.4,2691.3,0.918]
[1727496198679,4.76357917,2691.4,2691.1,1.2895]
[1727496198877,2.99473989,2691.3,2691.1,1.2895]
[1727496199972,2.99473989,2691.3,2691.1,0.918]
[1727496200475,2.99473989,2691.3,2691.1,1.2895]
[1727496202381,0.97384263,2691.2,2691.1,2.26359283]
[1727496202767,0.97384263,2691.2,2691.1,3.34082598]
[1727496203079,0.97384263,2691.2,2691.1,1.89209283]
[1727496206482,0.97384263,2691.2,2691.1,0.97409283]
[1727496209787,2.75808,2691.3,2691.0,2.86189283]
[1727496209987,3.01138244,2691.1,2691.0,2.86189283]
[1727496210377,3.01138244,2691.1,2691.0,1.8878]
[1727496210777,3.01138244,2691.1,2690.9,2.00429283]
[1727496210974,2.03978244,2691.0,2690.9,1.89209283]
[1727496211178,2.03978244,2691.0,2690.9,0.918]
[1727496211179,1.066,2691.0,2690.9,0.918]
[1727496211578,4.35413989,2691.0,2690.6,0.97409283]
[1727496211776,4.35413989,2691.0,2690.7,0.37155]
[1727496211777,5.15593989,2690.9,2690.7,0.37155]
[1727496212189,3.2078,2690.9,2690.7,0.37155]
[1727496212687,3.2078,2690.9,2690.6,1.37766]
[1727496212884,0.97359005,2690.7,2690.6,1.37766]
[1727496213879,3.2078,2690.9,2690.6,1.37766]
[1727496213880,0.97359005,2690.8,2690.6,1.37766]
[1727496215086,0.97359005,2690.8,2690.6,1.0061]
[1727496215275,0.97359005,2690.8,2690.6,1.37767]
[1727496215685,0.97359005,2690.8,2690.6,1.0061]
[1727496215886,0.97359005,2690.8,2690.7,0.37155]
[1727496216086,0.97359005,2690.9,2690.8,0.37154]
[1727496216282,0.97359005,2690.9,2690.7,1.28954]
[1727496216492,0.97359005,2690.9,2690.8,0.9835]
[1727496216693,2.03959005,2691.0,2690.8,1.35504]
[1727496216879,1.066,2691.0,2690.9,0.9926]
[1727496217281,2.03891691,2691.0,2690.9,0.9926]
[1727496219487,2.406,2691.0,2690.8,0.37154]
[1727496219793,0.97285642,2690.9,2690.8,0.37154]
[1727496220193,3.37885642,2691.0,2690.8,0.37154]
[1727496220592,0.97285642,2690.9,2690.8,0.37154]
[1727496220887,1.066,2691.0,2690.8,0.37154]
[1727496220888,2.03885642,2691.0,2690.8,0.37154]
[1727496221485,0.97285642,2690.9,2690.8,0.37154]
[1727496221684,2.41036642,2691.0,2690.7,1.28954]
[1727496221894,2.03885642,2691.0,2690.8,0.37154]
[1727496222098,2.41036642,2691.0,2690.7,1.28954]
[1727496225091,2.03885642,2691.0,2690.8,0.37153]
[1727496225297,2.41037642,2691.0,2690.7,1.28955]
[1727496228602,2.03885642,2691.0,2690.7,1.28955]
[1727496228797,2.03885642,2691.0,2690.9,0.37152]
[1727496229098,0.97285642,2691.0,2690.9,0.37152]
[1727496229290,0.97285642,2691.0,2690.7,2.258]
[1727496229490,3.31725642,2690.9,2690.7,1.28955]
[1727496231901,3.31725642,2690.9,2690.7,0.918]
[1727496232108,0.37156,2690.7,2690.5,1.23409283]
[1727496232403,4.86567,2690.6,2690.3,10.97410047]
[1727496232605,4.86567,2690.6,2690.3,11.88710047]
[1727496232904,5.83852642,2690.6,2690.3,11.88710047]
[1727496233196,4.86567,2690.6,2690.3,11.88710047]
[1727496233901,4.86567,2690.6,2690.3,10.97410047]
[1727496234106,5.83852642,2690.6,2690.3,10.91300764]
[1727496234309,0.97285642,2690.5,2690.3,10.91300764]
[1727496234503,0.97285642,2690.5,2690.3,11.28460764]
[1727496236209,0.97285642,2690.5,2690.3,10.91300764]
[1727496236708,0.97285642,2690.5,2690.3,11.28460764]
[1727496238708,5.46695642,2690.6,2690.3,11.28460764]
[1727496240410,5.83852642,2690.6,2690.3,11.28460764]
[1727496241409,5.46695642,2690.6,2690.3,11.28460764]
[1727496241606,0.97285642,2690.6,2690.5,0.37158]
[1727496241913,1.98565642,2690.8,2690.5,0.37158]
[1727496242110,1.98565642,2690.8,2690.6,0.9894]
[1727496242420,1.98565642,2690.8,2690.6,1.36096]
[1727496244512,0.97285642,2690.7,2690.6,1.36096]
[1727496244814,1.98565642,2690.8,2690.6,1.36096]
[1727496245214,0.97285642,2690.7,2690.6,1.36096]
[1727496245405,1.98565642,2690.8,2690.6,1.36096]
[1727496245911,0.97285642,2690.7,2690.6,1.36096]
[1727496247222,0.97285642,2690.7,2690.6,0.37156]
[1727496247717,0.37159,2690.4,2690.3,13.30680764]
[1727496247924,0.97336582,2690.4,2690.3,13.51661764]
[1727496248318,4.16066582,2690.4,2690.3,13.14500764]
[1727496248515,4.53225582,2690.4,2690.3,13.14500764]
[1727496249030,4.16066582,2690.4,2690.3,13.14500764]
[1727496249215,4.53225582,2690.4,2690.3,13.14500764]
[1727496250023,4.16066582,2690.4,2690.3,13.14500764]
[1727496250226,4.16066582,2690.4,2690.3,4.1208]
[1727496252125,4.16066582,2690.4,2690.3,0.913]
[1727496254127,3.1873,2690.4,2690.3,1.9834]
[1727496254629,4.16102599,2690.4,2690.3,1.9834]
[1727496256534,4.16102599,2690.4,2690.3,2.95749283]
[1727496259328,4.16102599,2690.4,2690.3,3.32910283]
[1727496259530,0.97372599,2690.5,2690.4,0.37159]
[1727496260027,0.97372599,2690.5,2690.3,4.39109283]
[1727496260426,0.97372599,2690.5,2690.4,1.34568283]
[1727496261231,0.97372599,2690.5,2690.4,0.37159]
[1727496261431,0.97372599,2690.5,2690.4,1.34568283]
[1727496262536,0.97372599,2690.5,2690.4,0.37159]
[1727496263038,0.97372599,2690.5,2690.3,4.39109283]
[1727496263941,1.0471,2690.4,2690.3,4.39109283]
[1727496264140,1.0471,2690.4,2690.3,5.46835602]
[1727496264330,1.0471,2690.4,2690.3,4.49426319]
[1727496264525,0.97372599,2690.5,2690.4,0.37159]
[1727496264834,1.32072599,2690.8,2690.7,0.37155]
[1727496265038,0.97372599,2690.9,2690.8,0.37154]
[1727496265233,0.97372599,2690.9,2690.8,3.25758714]
[1727496265432,0.97372599,2690.9,2690.8,2.28374]
[1727496265833,0.97372599,2690.9,2690.8,3.25758714]
[1727496267134,0.97372599,2690.9,2690.8,2.28374]
[1727496269137,0.97372599,2690.9,2690.8,3.25758714]
[1727496269339,0.97372599,2690.9,2690.8,2.28374]
[1727496269646,0.97372599,2690.9,2690.8,3.25758714]
[1727496269938,0.97372599,2691.0,2690.8,3.25758714]
[1727496270532,0.97372599,2690.9,2690.8,3.25758714]
[1727496270736,0.97372599,2691.0,2690.8,3.25758714]
[1727496271239,0.97372599,2690.9,2690.8,3.25758714]
[1727496271730,0.97372599,2691.0,2690.8,3.25758714]
[1727496272235,0.97372599,2690.9,2690.8,3.25758714]
[1727496272746,0.97372599,2691.0,2690.8,3.25758714]
[1727496279544,0.97372599,2691.0,2690.9,0.9707]
[1727496280245,0.97372599,2691.0,2690.8,0.89]
[1727496280246,3.17231461,2691.0,2690.8,0.89]
[1727496280452,3.05716898,2690.9,2690.8,0.89]
[1727496281144,3.0572041,2690.9,2690.8,0.89]
[1727496281649,3.05719802,2690.9,2690.8,0.89]
[1727496281847,2.0839,2690.9,2690.8,0.89]
[1727496282041,3.05719567,2690.9,2690.8,0.89]
[1727496282241,3.0571885,2690.9,2690.8,0.89]
[1727496282441,3.05721527,2690.9,2690.8,0.89]
[1727496283946,3.91621461,2690.9,2690.8,0.89]
[1727496284445,3.54469461,2690.9,2690.8,0.89]
[1727496284751,2.0839,2690.9,2690.8,0.89]
[1727496286649,4.03203989,2690.9,2690.7,1.23755]
[1727496286843,2.521584,2690.8,2690.7,1.23755]